bitfinex/quotes_ETHUSD_20220305
["timestamp","ask_amount","ask_price","bid_price","bid_amount"]
[1646444010557,0.80474796,2609.7,2609.5,0.76146249]
[1646444011558,0.80474796,2609.7,2609.5,0.75974897]
[1646444011758,0.87314939,2609.8,2609.5,0.00171352]
[1646444012758,0.87314939,2609.8,2609.4,0.09585]
[1646444012967,0.87314939,2609.8,2609.5,0.00171349]
[1646444013159,0.87314939,2609.8,2609.1,0.0016573]
[1646444013160,4.108e-05,2609.4,2609.1,0.0016573]
[1646444013362,4.108e-05,2609.4,2608.9,0.0016573]
[1646444013558,4.108e-05,2609.4,2608.9,0.09588]
[1646444013759,0.38324108,2609.4,2608.9,0.09588]
[1646444017012,0.3832,2609.3,2608.9,0.09588]
[1646444017862,0.3832,2609.3,2609.0,0.00209518]
[1646444018066,4.108e-05,2609.4,2609.0,0.00209518]
[1646444018664,4.108e-05,2609.4,2608.9,0.09588]
[1646444019064,4.108e-05,2609.4,2609.1,0.0020951]
[1646444019865,4.108e-05,2609.4,2608.9,0.09588]
[1646444020267,4.108e-05,2609.4,2609.1,0.00209506]
[1646444021267,4.108e-05,2609.4,2608.9,0.09588]
[1646444021504,4.108e-05,2609.4,2609.1,0.00188555]
[1646444022308,4.108e-05,2609.4,2609.0,0.1933773]
[1646444022509,4.108e-05,2609.4,2609.1,0.00188555]
[1646444022909,4.108e-05,2609.4,2609.1,1.15210555]
[1646444023512,4.108e-05,2609.4,2609.1,0.19172]
[1646444023711,4.108e-05,2609.4,2609.0,0.0016573]
[1646444023912,4.108e-05,2609.4,2609.1,0.00188555]
[1646444024711,4.108e-05,2609.4,2608.9,0.89183032]
[1646444025166,4.108e-05,2609.4,2609.1,0.00197721]
[1646444025963,4.108e-05,2609.4,2609.0,0.0016573]
[1646444026358,4.108e-05,2609.4,2609.1,0.00197721]
[1646444027258,4.108e-05,2609.4,2609.0,0.1933773]
[1646444027659,4.108e-05,2609.4,2609.1,0.00197721]
[1646444028661,4.108e-05,2609.4,2609.1,0.00165513]
[1646444029107,4.108e-05,2609.4,2609.1,0.7644399]
[1646444029308,4.108e-05,2609.4,2609.2,0.76278477]
[1646444029506,4.108e-05,2609.4,2609.3,0.76278477]
[1646444029807,4.108e-05,2609.4,2609.1,0.7644399]
[1646444030208,4.108e-05,2609.4,2609.1,0.7144399]
[1646444030407,4.108e-05,2609.4,2609.0,0.1933773]
[1646444033360,4.108e-05,2609.4,2609.1,0.00172683]
[1646444034361,4.108e-05,2609.4,2609.0,0.19172]
[1646444034561,4.108e-05,2609.4,2609.1,0.00172683]
[1646444035565,4.108e-05,2609.4,2609.0,0.19172]
[1646444035764,4.108e-05,2609.4,2609.1,0.00170243]
[1646444036710,4.108e-05,2609.4,2609.0,0.19172]
[1646444036909,4.108e-05,2609.4,2609.1,0.00170243]
[1646444038012,4.108e-05,2609.4,2609.0,0.1933773]
[1646444038412,4.108e-05,2609.4,2609.1,0.00170243]
[1646444039413,4.108e-05,2609.4,2609.1,0.00170792]
[1646444041765,4.108e-05,2609.4,2609.0,0.1933773]
[1646444041966,4.108e-05,2609.4,2609.1,0.00170792]
[1646444042768,4.108e-05,2609.4,2609.0,0.1933773]
[1646444043067,4.108e-05,2609.4,2609.1,0.00170668]
[1646444043911,4.108e-05,2609.4,2609.0,0.1933773]
[1646444044310,4.108e-05,2609.4,2609.1,0.00170668]
[1646444045110,4.108e-05,2609.4,2609.0,0.1933773]
[1646444045311,4.108e-05,2609.4,2609.1,0.00170668]
[1646444045714,2.9,2609.3,2609.0,0.00161428]
[1646444046016,2.9,2609.3,2608.8,0.00161428]
[1646444046212,2.9,2609.3,2608.6,0.00161428]
[1646444046213,3.98872072,2609.3,2608.6,0.00161428]
[1646444046418,1.08872072,2609.1,2608.6,0.00161428]
[1646444046611,1.0108001,2609.0,2608.4,0.00161428]
[1646444047113,1.71632082,2609.0,2608.4,0.00161428]
[1646444047311,1.0108001,2609.0,2608.4,0.00161428]
[1646444049260,4.5108001,2609.0,2608.4,0.00161428]
[1646444049462,0.3832,2608.9,2608.3,0.00161428]
[1646444050259,0.77745349,2608.8,2608.3,0.78848995]
[1646444050461,0.77745349,2608.8,2608.5,0.00208717]
[1646444051505,0.77745349,2608.8,2608.5,0.0041743]
[1646444051711,0.77745349,2608.8,2608.5,0.7889628]
[1646444051903,0.77745349,2608.8,2608.6,0.78687567]
[1646444052105,0.77745349,2608.8,2608.5,0.00208713]
[1646444052606,0.77745349,2608.8,2608.4,0.78687567]
[1646444052607,0.77745349,2608.8,2608.6,0.00208709]
[1646444052805,0.70552072,2609.2,2608.6,0.00208709]
[1646444052806,0.77745349,2608.7,2608.6,0.00208709]
[1646444053010,1.48297421,2609.2,2608.6,0.00208709]
[1646444053305,0.77745349,2609.1,2608.6,0.00208709]
[1646444053506,0.13819997,2609.3,2609.0,1.14900091]
[1646444053704,0.77697633,2609.2,2609.0,1.14900091]
[1646444053906,0.77697633,2609.2,2609.1,0.78596087]
[1646444054713,0.77697633,2609.2,2608.7,0.78757515]
[1646444054911,0.77697633,2609.2,2608.8,0.78596087]
[1646444055165,0.77697633,2609.2,2609.0,0.0018781]
[1646444055357,0.77697633,2609.2,2609.0,0.78783897]
[1646444055556,0.77697633,2609.2,2609.1,0.78596087]
[1646444055756,0.77697633,2609.2,2609.0,0.0018781]
[1646444055956,0.77697633,2609.2,2608.8,0.78596087]
[1646444056158,0.77697633,2609.2,2609.1,0.99170158]
[1646444056358,0.77697633,2609.2,2609.1,1.77766245]
[1646444056757,0.77697633,2609.2,2609.0,0.0018781]
[1646444056962,1.16017633,2609.2,2609.0,0.0018781]
[1646444057159,1.16017633,2609.2,2608.7,0.78787369]
[1646444057160,0.77697633,2609.1,2608.7,0.78787369]
[1646444057360,1.16017633,2609.2,2609.0,0.0018781]
[1646444057560,0.77697633,2609.1,2609.0,0.0018781]
[1646444058458,0.77697633,2609.1,2608.7,0.78787369]
[1646444058658,0.77697633,2609.1,2608.9,0.00208681]
[1646444059517,0.77697633,2609.1,2608.7,0.78625941]
[1646444059715,0.77697633,2609.0,2608.7,0.78625941]
[1646444059913,0.52139997,2609.3,2608.9,0.00208685]
[1646444060113,0.77746474,2609.2,2608.9,0.00208685]
[1646444060713,0.77746474,2609.2,2608.8,0.88214941]
[1646444060913,0.77746474,2609.2,2608.9,0.78625941]
[1646444061114,0.77746474,2609.2,2608.9,0.78834622]
[1646444061915,0.77746474,2609.2,2608.9,0.78625941]
[1646444062119,0.77746474,2609.2,2608.9,0.7882158]
[1646444063055,0.77746474,2609.2,2608.9,0.78625941]
[1646444063456,0.77746474,2609.2,2608.9,0.7882158]
[1646444064460,0.77746474,2609.2,2608.9,0.78625941]
[1646444064964,0.3832,2609.2,2608.9,0.00195639]
[1646444065160,0.77746474,2609.1,2608.9,0.00195639]
[1646444065760,0.77746474,2609.1,2608.9,0.09393776]
[1646444065965,0.77746474,2609.0,2608.9,0.09568221]
[1646444066161,0.77746474,2609.0,2608.9,0.88244604]
[1646444066607,0.77746474,2609.2,2608.9,0.88244604]
[1646444066808,0.77746474,2609.2,2609.0,0.78676383]
[1646444068207,0.77746474,2609.2,2609.0,0.78850824]
[1646444069214,0.77746474,2609.2,2609.0,0.78676383]
[1646444069413,0.77746474,2609.2,2609.0,0.78845811]
[1646444070460,0.77746474,2609.2,2609.0,0.78676383]
[1646444070658,0.77746474,2609.2,2609.0,0.78845811]
[1646444071659,0.77746474,2609.2,2609.0,0.78676383]
[1646444071862,0.77746474,2609.2,2609.0,0.78845811]
[1646444072860,0.77746474,2609.2,2609.0,0.78676383]
[1646444073161,0.77746474,2609.2,2609.0,0.78846939]
[1646444073762,0.77746474,2609.1,2609.0,0.78846939]
[1646444074011,4.108e-05,2609.4,2609.0,0.78676383]
[1646444074510,4.108e-05,2609.4,2609.0,0.78846939]
[1646444074911,0.77750582,2609.4,2609.0,0.78846939]
[1646444075218,0.77750582,2609.4,2609.0,0.98020939]
[1646444075219,0.77746474,2609.3,2609.0,0.98020939]
[1646444075412,0.77746474,2609.2,2609.1,0.78676383]
[1646444075710,4.108e-05,2609.4,2609.1,0.78676383]
[1646444076111,0.77750582,2609.4,2609.1,0.78676383]
[1646444076312,0.77746474,2609.3,2609.1,1.74526383]
[1646444076511,4.108e-05,2609.4,2609.2,0.78676383]
[1646444076713,4.108e-05,2609.4,2609.2,0.88262383]
[1646444076913,4.108e-05,2609.4,2609.3,1.16996383]
[1646444081269,0.70552072,2610.2,2609.4,4.77489]
[1646444081270,0.77672453,2609.6,2609.4,4.77489]
[1646444081507,0.7029088,2610.2,2609.5,1.74517383]
[1646444081705,1.47930804,2610.2,2609.6,0.78676383]
[1646444081906,0.77639924,2610.1,2609.6,0.78676383]
[1646444082105,0.77639924,2610.0,2609.6,0.78676383]
[1646444082309,0.67639924,2609.9,2609.6,0.78676383]
[1646444082506,0.7029088,2610.2,2609.8,1.18788318]
[1646444082911,0.7029088,2610.2,2609.8,1.37955318]
[1646444084514,0.94942163,2610.5,2609.8,1.37955318]
[1646444084919,0.93891947,2610.5,2609.8,1.37955318]
[1646444085169,0.01050216,2610.5,2609.8,1.37955318]
[1646444085759,0.01050216,2610.5,2609.8,0.01351343]
[1646444085960,0.93891947,2610.6,2609.8,0.01351343]
[1646444087061,0.93891947,2610.6,2609.8,0.20518343]
[1646444089912,1.21020973,2610.4,2609.8,0.20518343]
[1646444090114,1.21020973,2610.4,2609.7,0.09584]
[1646444090314,1.21020973,2610.4,2609.6,1.2385]
[1646444090515,3.5,2610.3,2609.6,1.2385]
[1646444090717,3.5,2610.3,2609.3,5.1713]
[1646444090718,4.82211947,2610.3,2609.3,5.1713]
[1646444091117,1.17985201,2609.5,2609.3,5.1713]
[1646444091317,4.58629034,2610.0,2609.3,1.0]
[1646444091517,1.08629034,2610.0,2609.3,1.0]
[1646444091716,1.08629034,2610.0,2609.2,0.19171]
[1646444092418,0.87837394,2609.9,2609.3,0.91738956]
[1646444093159,1.08629034,2610.0,2609.3,1.01324956]
[1646444094662,2.1740458,2610.0,2609.3,1.01324956]
[1646444095263,0.70309034,2609.9,2609.3,1.01324956]
[1646444095664,1.08775546,2610.0,2609.3,1.01324956]
[1646444095868,1.08775546,2610.0,2609.3,1.97168956]
[1646444096064,0.70309034,2610.2,2609.3,1.97168956]
[1646444096269,0.70309034,2610.2,2609.3,2.16318956]
[1646444096925,0.70309034,2610.2,2609.7,0.09585]
[1646444097126,0.70309034,2610.1,2609.7,0.09585]
[1646444097324,0.70309034,2610.2,2609.9,0.95096566]
[1646444097527,0.70309034,2610.2,2609.7,0.09585]
[1646444098531,0.70309034,2610.2,2609.7,1.25379749]
[1646444099728,0.70309034,2610.3,2609.7,1.25379749]
[1646444100171,0.70309034,2610.2,2609.7,1.25379749]
[1646444100565,0.70309034,2610.2,2609.6,0.19169]
[1646444101167,0.70309034,2610.3,2609.6,0.19169]
[1646444101366,0.70309034,2610.2,2609.6,0.19169]
[1646444101967,0.99654437,2610.1,2609.6,0.19169]
[1646444102171,1.69963471,2610.1,2609.6,0.19169]
[1646444102372,0.74658239,2610.0,2609.6,0.19169]
[1646444104316,1.44967273,2610.0,2609.6,0.19169]
[1646444105619,0.74658239,2610.0,2609.6,0.19169]
[1646444106118,0.74658239,2609.9,2609.6,0.19169]
[1646444106328,0.74658239,2609.8,2609.6,0.19169]
[1646444106519,0.74658239,2609.7,2609.6,0.19169]
[1646444106719,0.74658239,2609.7,2609.6,1.00565231]
[1646444107120,0.74658239,2610.1,2609.6,1.00565231]
[1646444107321,0.74679209,2610.0,2609.7,0.81396231]
[1646444107521,0.74679209,2609.9,2609.6,0.19169]
[1646444107761,0.70309034,2610.2,2609.7,0.81399229]
[1646444107762,0.74679209,2609.8,2609.7,0.81399229]
[1646444107961,0.70309034,2610.2,2609.5,0.56474509]
[1646444107962,0.58582238,2609.6,2609.5,0.56474509]
[1646444108168,0.58582238,2609.6,2609.3,1.00907163]
[1646444108369,0.58582238,2609.6,2609.4,2.02924843]
[1646444108571,0.58582238,2609.6,2609.4,1.2116768]
[1646444108572,0.74339225,2609.5,2609.4,1.2116768]
[1646444108769,0.74339225,2609.5,2609.4,2.02944433]
[1646444108974,0.74339225,2609.5,2609.4,0.81776753]
[1646444110572,0.74339225,2609.5,2609.1,1.2263]
[1646444110772,0.74339225,2609.5,2609.2,0.81844708]
[1646444110969,0.74339225,2609.5,2608.9,4.58854]
[1646444111171,0.74339225,2609.5,2609.0,0.81826764]
[1646444112014,0.74339225,2609.5,2609.0,1.70616563]
[1646444112214,0.74339225,2609.5,2609.1,0.81826764]
[1646444115260,2.03230497,2609.6,2609.1,0.81826764]
[1646444115466,0.74339225,2609.5,2609.1,0.81826764]
[1646444116874,1.44648259,2609.5,2609.2,0.81826764]
[1646444117168,0.58582238,2609.6,2608.9,0.19174]
[1646444117169,0.74339225,2609.4,2608.9,0.19174]
[1646444117367,0.74339225,2609.3,2609.0,0.81962737]
[1646444117568,0.74339225,2609.5,2609.0,0.81962737]
[1646444117768,1.62012992,2609.4,2609.0,0.81962737]
[1646444117969,0.74339225,2609.3,2609.0,0.81962737]
[1646444118370,0.74339225,2609.3,2608.8,0.00161428]
[1646444118568,1.44648259,2609.3,2608.8,0.82006726]
[1646444118769,1.44648259,2609.3,2608.9,0.82006726]
[1646444119020,1.44648259,2609.3,2609.0,0.82006726]
[1646444119221,1.44648259,2609.3,2609.1,0.82004832]
[1646444119525,0.74339225,2609.2,2608.9,1.00433563]
[1646444119722,0.74339225,2609.1,2609.0,0.81997136]
[1646444119923,1.44648259,2609.5,2609.0,0.91585136]
[1646444120122,1.44648259,2609.5,2609.1,0.81997136]
[1646444120123,0.70309034,2609.4,2609.1,0.81997136]
[1646444120822,1.44648259,2609.5,2609.1,0.81997136]
[1646444121022,1.10379095,2609.3,2609.1,0.81997136]
[1646444121222,0.74339225,2609.2,2609.1,0.81997136]
[1646444124466,0.74339225,2609.2,2609.0,0.09796677]
[1646444124865,0.74339225,2609.2,2609.0,0.09588]
[1646444125065,0.74339225,2609.2,2609.1,0.81972672]
[1646444125566,0.74339225,2609.2,2609.1,0.81957192]
[1646444127411,0.74339225,2609.4,2609.1,0.81957192]
[1646444127609,0.74339225,2609.3,2609.1,0.81957192]
[1646444127811,0.74339225,2609.2,2609.1,0.81957192]
[1646444128010,0.74339225,2609.2,2609.1,0.81985287]
[1646444128211,1.90574323,2609.4,2609.0,0.09796155]
[1646444128410,0.74339225,2609.3,2609.1,0.81988565]
[1646444128710,0.74339225,2609.3,2608.9,0.93706618]
[1646444128711,0.68348091,2609.0,2608.9,0.93706618]
[1646444128912,0.68348091,2609.0,2608.9,1.75879647]
[1646444129112,1.42687316,2609.0,2608.9,1.75879647]
[1646444131265,0.68348091,2609.0,2608.9,1.75879647]
[1646444133466,0.68348091,2609.0,2608.9,0.82173029]
[1646444133915,1.42603579,2609.0,2608.9,0.82173029]
[1646444134722,0.68348091,2609.0,2608.9,0.82173029]
[1646444135123,0.68348091,2609.0,2608.9,1.92734882]
[1646444137122,1.42626082,2609.0,2608.9,1.92734882]
[1646444140173,1.42626082,2609.0,2608.9,0.82173029]
[1646444142521,1.42626082,2609.0,2608.8,0.82344271]
[1646444142724,0.74277991,2608.9,2608.8,0.82344271]
[1646444142919,0.74277991,2608.9,2608.8,0.82173029]
[1646444143321,0.74277991,2608.9,2608.8,0.82343192]
[1646444143523,0.74277991,2608.9,2608.8,0.00170163]
[1646444143524,4.24277991,2608.9,2608.8,0.00170163]
[1646444144223,4.24277991,2608.9,2608.7,0.82173029]
[1646444144423,1.81243575,2608.8,2608.7,0.00170166]
[1646444145270,5.31243575,2608.8,2608.7,0.00170166]
[1646444145462,6.48183575,2608.8,2608.4,0.82173029]
[1646444145664,0.74277991,2608.7,2608.6,0.00170173]
[1646444145963,4.24277991,2608.7,2608.6,0.00170173]
[1646444146562,0.3832,2608.6,2608.2,0.82334457]
[1646444146762,1.12597991,2608.5,2608.2,0.82173029]
[1646444146961,1.12597991,2608.4,2608.2,0.82173029]
[1646444147263,0.74277991,2608.3,2608.2,0.82173029]
[1646444147463,1.63568265,2608.3,2608.2,0.82173029]
[1646444147878,5.51888265,2608.3,2607.9,0.00161428]
[1646444148065,1.12597991,2608.2,2607.8,0.84596365]
[1646444148264,4.39290274,2608.3,2607.8,0.84596365]
[1646444148265,4.62597991,2608.1,2607.8,0.84596365]
[1646444148465,0.74277991,2608.0,2607.8,0.84596365]
[1646444148665,5.45335973,2607.9,2607.8,0.84596365]
[1646444148914,5.45335973,2607.9,2607.7,1.00681898]
[1646444149120,0.71668003,2607.8,2607.7,1.0]
[1646444149321,0.71668003,2607.8,2607.7,0.07981319]
[1646444149724,0.71668003,2607.8,2607.7,0.00170475]
[1646444150427,1.09988003,2607.8,2607.4,0.014304]
[1646444150621,1.09988003,2607.8,2607.6,0.01602213]
[1646444150822,0.71668003,2607.7,2607.6,0.01602213]
[1646444151021,4.21668003,2607.7,2607.6,0.01602213]
[1646444151422,0.71668003,2607.7,2607.6,0.0143136]
[1646444152021,4.21668003,2607.7,2607.6,0.0143136]
[1646444152963,0.71668003,2607.7,2607.6,0.0143136]
[1646444153362,3.8832,2607.8,2607.6,0.0143136]
[1646444153561,0.3832,2607.8,2607.6,0.0143136]
[1646444154263,0.3832,2607.8,2607.6,0.01601706]
[1646444154663,1.20057982,2607.9,2607.6,0.01601706]
[1646444155063,1.20057982,2607.9,2607.6,0.0143136]
[1646444155262,1.58377982,2607.9,2607.6,0.01601703]
[1646444156269,1.58377982,2607.9,2607.6,0.0143136]
[1646444156508,1.58377982,2607.9,2607.6,0.01601703]
[1646444156907,1.20057982,2607.9,2607.6,0.01601703]
[1646444157408,1.20057982,2607.9,2607.6,0.0143136]
[1646444157812,1.20057982,2607.9,2607.6,0.01601818]
[1646444158413,1.58377982,2607.9,2607.6,0.01601818]
[1646444158714,1.58377982,2607.9,2607.6,0.0143136]
[1646444158715,1.07953704,2607.8,2607.6,0.0143136]
[1646444158915,0.3832,2607.8,2607.6,0.01601818]
[1646444159915,0.3832,2607.8,2607.6,0.0143136]
[1646444160162,0.3832,2607.8,2607.6,0.01601821]
[1646444160362,1.20057982,2607.9,2607.6,0.01601821]
[1646444161160,1.20057982,2607.9,2607.6,0.0143136]
[1646444161362,1.20057982,2607.9,2607.6,0.01601792]
[1646444162378,1.20057982,2607.9,2607.6,0.0143136]
[1646444162562,1.20057982,2607.9,2607.6,0.01601792]
[1646444163663,1.20057982,2607.9,2607.6,0.0143136]
[1646444163908,0.69532218,2607.8,2607.6,0.01601792]
[1646444164714,0.69532218,2607.8,2607.6,0.0143136]
[1646444164915,0.69532218,2607.8,2607.6,0.01601801]
[1646444165918,0.69532218,2607.8,2607.6,0.0143136]
[1646444166116,1.58377982,2607.9,2607.6,0.01601801]
[1646444166317,0.69510018,2607.8,2607.6,0.01601801]
[1646444166521,0.69510018,2607.8,2607.1,0.2869349]
[1646444166522,4.5832,2607.6,2606.7,0.25]
[1646444166723,4.5832,2607.6,2606.4,0.0145229]
[1646444166724,0.01237761,2606.9,2606.4,0.0145229]
[1646444166920,3.89557761,2606.9,2606.4,0.0145229]
[1646444167122,15.5532,2606.9,2606.4,0.0145229]
[1646444167317,15.5532,2606.9,2606.2,0.0168173]
[1646444167318,4.8832,2606.7,2606.2,0.0168173]
[1646444167519,0.91864638,2606.3,2606.2,0.0168173]
[1646444168169,1.34333,2606.4,2606.2,0.0168173]
[1646444168374,1.24333,2606.4,2606.2,0.0168173]
[1646444169170,1.24333,2606.4,2606.2,0.00132482]
[1646444169770,1.24333,2606.4,2606.2,0.00303013]
[1646444170373,4.75474441,2606.3,2605.9,0.01400813]
[1646444171811,3.8832,2606.2,2605.9,0.01400813]
[1646444172013,5.8038,2606.2,2605.9,0.01400813]
[1646444172412,17.4738,2606.2,2605.9,0.01400813]
[1646444172613,17.4738,2606.2,2605.9,8.13e-06]
[1646444173212,18.4340902,2606.2,2605.9,8.13e-06]
[1646444174018,13.0135,2606.1,2605.9,8.13e-06]
[1646444174220,13.00306519,2606.1,2605.9,8.13e-06]
[1646444174418,4.46029,2606.0,2605.9,8.13e-06]
[1646444175766,0.96029,2606.0,2605.9,8.13e-06]
[1646444176169,5.4842934,2605.9,2605.6,0.038752]
[1646444176565,3.8832,2605.8,2605.6,0.038752]
[1646444176767,3.5,2605.7,2605.6,0.038752]
[1646444177168,2.52196,2605.8,2605.6,0.038752]
[1646444177767,6.02196,2605.8,2605.6,0.038752]
[1646444178368,11.67,2605.7,2605.6,0.038752]
[1646444179019,0.96041,2605.7,2605.6,0.038752]
[1646444179423,0.3832,2605.8,2605.6,0.038752]
[1646444181121,12.0532,2605.8,2605.6,0.038752]
[1646444181326,17.4741,2605.8,2605.6,0.038752]
[1646444181723,13.9741,2605.8,2605.6,0.04078975]
[1646444181921,2.3041,2605.8,2605.6,0.04078975]
[1646444182121,0.3832,2605.8,2605.6,0.04078975]
[1646444182320,0.2639,2605.9,2605.6,0.04078975]
[1646444182766,0.2639,2605.9,2605.6,0.038752]
[1646444182966,0.2639,2605.9,2605.6,0.04078975]
[1646444183768,0.9458713,2605.8,2605.6,0.04078975]
[1646444183975,0.9458713,2605.8,2605.6,0.038752]
[1646444184273,0.9458713,2605.8,2605.6,0.04078971]
[1646444184779,1.3290713,2605.8,2605.6,0.04078971]
[1646444184974,0.9458713,2605.8,2605.6,0.04078971]
[1646444185171,0.9458713,2605.8,2605.6,0.038752]
[1646444186413,1.3290713,2605.8,2605.6,0.038752]
[1646444186617,1.3290713,2605.8,2605.6,0.04078975]
[1646444186812,0.9458713,2605.8,2605.6,0.04078975]
[1646444187212,1.3290713,2605.8,2605.6,0.04078975]
[1646444187415,1.3290713,2605.8,2605.6,0.038752]
[1646444187812,1.3290713,2605.8,2605.6,0.04078975]
[1646444188413,12.9990713,2605.8,2605.6,0.04078975]
[1646444188614,12.9990713,2605.8,2605.6,0.038752]
[1646444189020,12.9990713,2605.8,2605.6,0.04058597]
[1646444189222,12.9990713,2605.8,2605.5,0.49688092]
[1646444190768,14.9199813,2605.8,2605.5,0.49688092]
[1646444192569,14.9199813,2605.8,2605.5,0.49891414]
[1646444193574,14.9199813,2605.8,2605.5,0.49688092]
[1646444193770,14.9199813,2605.8,2605.5,0.49891414]
[1646444194825,14.9199813,2605.8,2605.5,0.49688092]
[1646444195026,14.9199813,2605.8,2605.5,0.49891414]
[1646444195624,14.9199813,2605.8,2605.5,0.01660962]
[1646444195828,11.67,2605.6,2605.4,0.0144825]
[1646444196028,17.09124,2605.5,2605.4,0.0144825]
[1646444196226,17.77281224,2605.5,2605.4,0.0144825]
[1646444196427,17.77281224,2605.5,2605.0,9.97e-05]
[1646444196428,11.67,2605.1,2605.0,9.97e-05]
[1646444196629,18.15066947,2605.1,2605.0,9.97e-05]
[1646444196828,18.15066947,2605.1,2604.8,0.01684022]
[1646444196829,11.67,2604.9,2604.8,0.01684022]
[1646444197426,11.67,2604.7,2604.6,0.0466123]
[1646444197685,16.17,2604.4,2604.3,7.47]
[1646444197879,4.5,2604.2,2603.8,0.0145229]
[1646444198076,4.5,2604.1,2603.4,0.2492315]
[1646444198277,4.5,2604.1,2603.4,0.0192545]
[1646444198278,5.46105,2604.1,2603.4,0.0192545]
[1646444198476,17.13105,2604.1,2603.4,0.0192545]
[1646444198683,17.51425,2604.1,2603.4,0.0192545]
[1646444198877,13.67,2603.9,2603.4,0.0192545]
[1646444199076,1.0771737,2603.5,2603.4,0.0192545]
[1646444199676,12.63132,2603.8,2603.4,0.0192545]
[1646444200277,0.96132,2603.8,2603.4,0.0192545]
[1646444200680,2.9057705,2603.9,2603.4,0.0192545]
[1646444201078,2.0,2603.9,2603.5,0.00198395]
[1646444201515,11.648,2604.9,2603.5,0.00198395]
[1646444201516,2.0,2604.4,2603.5,0.00198395]
[1646444201716,2.0,2604.4,2603.5,0.00362228]
[1646444201921,2.0,2604.4,2603.5,0.00163833]
[1646444202424,1.22574943,2604.1,2603.8,0.00198369]
[1646444203225,1.22574943,2604.1,2603.5,0.00163833]
[1646444203419,1.22574943,2604.1,2603.8,0.00198369]
[1646444203922,13.85683943,2604.1,2603.8,0.00198369]
[1646444204122,17.35683943,2604.1,2603.8,0.00198369]
[1646444204320,13.85683943,2604.1,2603.4,0.0192545]
[1646444204621,0.192,2604.2,2603.4,0.0192545]
[1646444204819,13.67,2604.4,2603.4,0.0192545]
[1646444204820,0.192,2604.3,2603.8,0.00198369]
[1646444205270,13.67,2604.4,2603.8,0.00198369]
[1646444205673,0.92229158,2604.1,2603.5,1.00419999]
[1646444205869,0.92229158,2604.1,2603.9,0.00163648]
[1646444206671,0.92229158,2604.1,2603.5,0.0065469]
[1646444206869,0.92229158,2604.1,2603.4,0.0192545]
[1646444207075,12.59229158,2604.1,2603.9,0.00163651]
[1646444207371,0.92229158,2604.1,2603.9,0.00163651]
[1646444207583,12.59229158,2604.1,2603.9,0.00163651]
[1646444207873,0.92229158,2604.1,2603.9,0.00163651]
[1646444208074,0.92229158,2604.1,2603.4,0.0192545]
[1646444208272,12.59229158,2604.1,2603.9,0.00163651]
[1646444208673,15.17,2604.0,2603.9,0.00163651]
[1646444209124,15.5532,2604.0,2603.4,0.0192545]
[1646444209326,1.03589705,2603.4,2603.3,0.00615733]
[1646444209524,15.17,2603.9,2603.3,0.004519]
[1646444209725,3.5,2603.9,2603.3,0.004519]
[1646444210527,15.17,2603.9,2603.3,0.004519]
[1646444210725,1.11071897,2603.5,2603.3,0.004519]
[1646444211629,1.1952,2604.0,2603.3,0.004519]
[1646444211830,4.4,2603.9,2603.0,0.0177646]
[1646444212683,0.96746119,2603.5,2603.0,0.0177646]
[1646444212871,4.4,2603.9,2603.0,0.0177646]
[1646444213070,4.4,2603.9,2603.3,0.00196361]
[1646444213270,4.7832,2603.9,2603.3,0.00196361]
[1646444213569,11.67,2603.7,2603.3,0.00196361]
[1646444213974,11.67,2603.7,2603.0,0.0177646]
[1646444214174,0.88553439,2603.6,2603.0,0.0177646]
[1646444214373,0.88553439,2603.6,2603.4,0.00196357]
[1646444214572,12.55553439,2603.6,2603.4,0.00196357]
[1646444215282,12.55553439,2603.6,2603.0,0.0177646]
[1646444215476,12.55553439,2603.6,2603.4,0.00196357]
[1646444215877,15.17,2603.5,2603.4,0.00196357]
[1646444216517,15.17,2603.5,2603.0,0.0177646]
[1646444216714,15.17,2603.5,2603.3,0.00196361]
[1646444217221,15.17,2603.5,2602.6,0.0142172]
[1646444217222,12.0532,2603.3,2602.6,0.0142172]
[1646444217419,2.0,2602.7,2602.6,0.0142172]
[1646444217920,13.67,2602.7,2602.6,0.0142172]
[1646444218118,12.0532,2602.5,2602.3,0.014304]
[1646444218318,11.67,2602.4,2602.3,0.014304]
[1646444219122,0.3832,2602.6,2602.3,0.014304]
[1646444219123,12.0532,2602.6,2602.3,0.014304]
[1646444221468,12.0532,2602.6,2602.3,0.01624381]
[1646444222072,11.67,2602.6,2602.3,0.01624381]
[1646444222272,2.0,2602.6,2602.3,0.01624381]
[1646444222470,2.0,2602.6,2602.3,0.014304]
[1646444222868,2.0,2602.6,2602.3,0.01624381]
[1646444223073,2.0,2602.6,2602.4,1.16226836]
[1646444223919,2.0,2602.6,2602.4,1.16420813]
[1646444224924,2.0,2602.6,2602.4,1.16226836]
[1646444225224,0.3832,2603.4,2602.4,1.16226836]
[1646444225225,2.0,2603.1,2602.4,1.16420813]
[1646444225425,3.32433728,2604.1,2602.4,1.16420813]
[1646444225426,3.8,2604.0,2602.4,1.73961813]
[1646444225730,2.0,2603.4,2602.4,1.74125115]
[1646444226128,2.0,2603.8,2602.4,1.73931138]
[1646444226325,1.23178302,2603.7,2603.1,1.23405905]
[1646444226628,1.23178302,2603.7,2602.9,0.0961]
[1646444226824,2.0,2603.8,2602.9,0.0961]
[1646444227226,2.0,2603.8,2602.9,0.09773302]
[1646444227868,3.16336317,2603.8,2603.2,1.06849532]
[1646444228566,2.0,2603.8,2603.2,1.06849532]
[1646444228973,2.0,2603.8,2602.9,0.09773302]
[1646444229171,2.0,2603.8,2602.9,0.00163302]
[1646444229974,0.90578719,2603.4,2602.9,0.00163302]
[1646444230274,0.90578719,2603.4,2602.8,0.00155219]
[1646444230879,0.90578719,2603.4,2602.5,0.09774302]
[1646444231075,0.90578719,2603.4,2602.8,0.00155219]
[1646444231278,0.90578719,2603.4,2602.8,1.07391876]
[1646444232016,0.90578719,2603.4,2602.8,1.07236657]
[1646444232418,0.90578719,2603.4,2602.8,1.07391876]
[1646444233220,0.90578719,2603.4,2602.8,1.07236657]
[1646444233523,0.90578719,2603.4,2602.8,1.0739568]
[1646444233919,2.0,2603.8,2602.8,1.0739568]
[1646444234123,2.0,2603.8,2602.9,0.09773302]
[1646444234323,2.0,2603.8,2602.9,0.48093302]
[1646444234727,2.0,2603.8,2603.5,0.01223095]
[1646444234925,0.00240561,2604.3,2603.9,0.3832]
[1646444235184,0.00240561,2604.3,2604.0,0.09605]
[1646444235868,0.64584752,2604.8,2604.0,0.09605]
[1646444236074,1.04156034,2604.3,2604.0,0.09768302]
[1646444236273,1.04156034,2604.3,2603.8,1.6819367]
[1646444236470,1.04156034,2604.3,2603.8,1.68030368]
[1646444236471,0.64644338,2604.2,2603.8,1.68030368]
[1646444237873,0.64644338,2604.2,2603.8,2.55730933]
[1646444238077,3.04155766,2604.3,2603.8,2.55730933]
[1646444238078,3.03913849,2604.3,2603.8,2.55730933]